fUST/lending_fUST_20260114
["ID","MTS","AMOUNT","RATE_DAILY","PERIOD"]
[401716661,1768343995147,-500.0,0.00012674,2]
[401716662,1768343995211,-500.0,0.00012674,2]
[401716663,1768343995274,-500.0,0.00012674,2]
[401716664,1768343995340,-500.0,0.00012674,2]
[401716665,1768343995410,-500.0,0.00012674,2]
[401716666,1768343995477,-500.0,0.00012674,2]
[401716667,1768343995546,-500.0,0.00012674,2]
[401716668,1768343995612,-500.0,0.00012674,2]
[401716669,1768343996188,-0.01,0.00012674,2]
[401716670,1768343997627,-499.99,0.00012674,2]
[401716671,1768343997699,-500.0,0.00012674,2]
[401716672,1768343997758,-561.02798792,0.00012674,2]
[401716673,1768343997819,-500.0,0.00012674,2]
[401716674,1768344001325,300.0,0.00012674,2]
[401716675,1768344002275,300.0,0.00012674,2]
[401716676,1768344005609,1200.0,0.00012674,2]
[401716677,1768344010231,500.0,0.00012672,2]
[401716678,1768344010346,500.0,0.00012672,2]
[401716679,1768344010418,350.73105314,0.00012672,2]
[401716680,1768344014223,461.67526834,0.00012673,2]
[401716681,1768344017325,2230.315306,0.00012673,2]
[401716682,1768344028578,180.69597573,0.00012575,2]
[401716684,1768344079641,250.0,0.00011676,2]
[401716685,1768344122773,300.0,0.00012674,2]
[401716686,1768344122839,300.0,0.00012674,2]
[401716687,1768344132327,800.0,0.00012566,2]
[401716688,1768344132403,800.0,0.00012666,2]
[401716689,1768344134107,151.0,0.000122,2]
[401716690,1768344134465,151.0,0.000116,2]
[401716691,1768344134774,151.0,0.00011,2]
[401716692,1768344136816,500.0,0.00012674,2]
[401716693,1768344137038,500.0,0.00012674,2]
[401716694,1768344137117,391.91347407,0.00012674,2]
[401716695,1768344145118,500.0,0.00012674,2]
[401716696,1768344145191,500.0,0.00012674,2]
[401716697,1768344145262,481.67892272,0.00012674,2]
[401716698,1768344145323,18.32107728,0.00012674,2]
[401716699,1768344145406,500.0,0.00012674,2]
[401716700,1768344145495,500.0,0.00012674,2]
[401716701,1768344145567,465.95937523,0.00012674,2]
[401716702,1768344145656,500.0,0.00012674,2]
[401716703,1768344145726,500.0,0.00012674,2]
[401716704,1768344145792,500.0,0.00012674,2]
[401716705,1768344145867,500.0,0.00012674,2]
[401716706,1768344152242,262.89267079,0.00012674,2]
[401716707,1768344158714,6252.8368767,0.00012573,2]
[401716708,1768344158782,10000.01,0.00012573,2]
[401716709,1768344158848,10000.01,0.00012573,2]
[401716710,1768344158912,10000.01,0.00012573,2]
[401716711,1768344159124,10000.01,0.00012573,2]
[401716712,1768344159190,10000.01,0.00012573,2]
[401716716,1768344178244,-304.59,0.00012573,2]
[401716717,1768344182135,-664.77698397,0.00012573,2]
[401716718,1768344182278,300.0,0.00012572,2]
[401716719,1768344185328,-184.70262868,0.00012573,2]
[401716720,1768344186931,-178.7776414,0.00012573,2]
[401716722,1768344189798,-155.1417657,0.00012573,2]
[401716724,1768344228376,839.68,0.00030137,120]
[401716725,1768344240577,500.0,0.00011,2]
[401716726,1768344242292,300.0,0.00012572,2]
[401716771,1768344263502,834.67,0.00030137,120]
[401716773,1768344288611,834.67,0.00030137,120]
[401716774,1768344292093,500.0,0.00012,2]
[401716775,1768344302124,300.0,0.00012572,2]
[401716776,1768344305383,1200.0,0.00012572,2]
[401716777,1768344316508,1669.34,0.000134,60]
[401716779,1768344362955,300.0,0.00012572,2]
[401716780,1768344365045,173.46813671,0.00012573,2]
[401716781,1768344382623,500.0,0.00012572,2]
[401716782,1768344382955,500.0,0.00012572,2]
[401716783,1768344383334,500.0,0.00012572,2]
[401716784,1768344383698,500.0,0.00012572,2]
[401716785,1768344384051,500.0,0.00012572,2]
[401716786,1768344390571,500.0,0.00012572,2]
[401716787,1768344391292,500.0,0.00012572,2]
[401716788,1768344391404,500.0,0.00012572,2]
[401716789,1768344396788,500.0,0.00012572,2]
[401716790,1768344397027,500.0,0.00012572,2]
[401716791,1768344397857,500.0,0.00012572,2]
[401716792,1768344397927,500.0,0.00012572,2]
[401716793,1768344397995,426.54186329,0.00012572,2]
[401716794,1768344398056,73.45813671,0.00012572,2]
[401716795,1768344398127,500.0,0.00012572,2]
[401716796,1768344398199,242.28181738,0.00012572,2]
[401716797,1768344398275,500.0,0.00012572,2]
[401716798,1768344398346,500.0,0.00012572,2]
[401716799,1768344398532,500.0,0.00012572,2]
[401716800,1768344398607,500.0,0.00012572,2]
[401716801,1768344398676,500.0,0.00012572,2]
[401716802,1768344398747,500.0,0.00012572,2]
[401716803,1768344398815,500.0,0.00012572,2]
[401716804,1768344398884,500.0,0.00012572,2]
[401716805,1768344398951,500.0,0.00012572,2]
[401716806,1768344399022,645.0,0.00012572,2]
[401716807,1768344399102,500.0,0.00012572,2]
[401716808,1768344399186,483.78462527,0.00012572,2]
[401716809,1768344399261,500.0,0.00012572,2]
[401716810,1768344399329,500.0,0.00012572,2]
[401716811,1768344399411,500.0,0.00012572,2]
[401716812,1768344399486,500.0,0.00012572,2]
[401716814,1768344412707,500.0,0.00012572,2]
[401716815,1768344412773,500.0,0.00012572,2]
[401716816,1768344422374,300.0,0.00012572,2]
[401716820,1768344427666,2470.8363284,0.00012364,2]
[401716821,1768344432640,800.0,0.00012538,2]
[401716823,1768344435202,1632.63,0.00011764,2]
[401716824,1768344437453,151.0,0.000125,2]
[401716825,1768344437793,151.0,0.000123,2]
[401716826,1768344438106,151.0,0.000122,2]
[401716828,1768344482341,300.0,0.00012572,2]
[401716829,1768344542346,300.0,0.00012572,2]
[401716841,1768344584123,2840.79589202,0.00012148,2]
[401716842,1768344587606,710.19897301,0.00012148,2]
[401716843,1768344604568,598.0,0.00012573,2]
[401716844,1768344610842,461.67526834,0.00012573,2]
[401716845,1768344613441,168.3888056,0.00012573,2]
[401716846,1768344614101,174.61919141,0.00012573,2]
[401716847,1768344614732,181.08010149,0.00012573,2]
[401716848,1768344615330,187.78006525,0.00012573,2]
[401716849,1768344630878,-194.72792766,0.00012573,2]
[401716850,1768344630939,-201.93286099,0.00012573,2]
[401716851,1768344630999,-209.40437684,0.00012573,2]
[401716852,1768344631060,-217.15233878,0.00012573,2]
[401716863,1768344632104,-9987.04302667,0.00012573,2]
[401716865,1768344632333,-4466.18553459,0.00012573,2]
[401716866,1768344632422,-225.18697532,0.00012573,2]
[401716867,1768344632511,-233.51889341,0.00012573,2]
[401716868,1768344632945,-242.15909246,0.00012573,2]
[401716869,1768344633024,-251.11897888,0.00012573,2]
[401716870,1768344633114,-257.10591565,0.00012573,2]
[401716871,1768344633189,-2230.315306,0.00012573,2]
[401716911,1768344638099,-15690.04593713,0.00012573,2]
[401716913,1768344638111,-574.31005692,0.00012573,2]
[401716915,1768344638122,-9140.68039982,0.00012573,2]
[401716920,1768344638160,-961.71379467,0.00012573,2]
[401716922,1768344638171,-1703.45085993,0.00012573,2]
[401716925,1768344638182,-562.31420507,0.00012573,2]
[401716930,1768344638225,-3006.69431809,0.00012573,2]
[401717109,1768344640129,-733.73686278,0.00012573,2]
[401717116,1768344640189,-28686.3,0.00012573,2]
[401717127,1768344640282,-3e-08,0.00012573,2]
[401717129,1768344640293,-528.89051107,0.00012573,2]
[401717131,1768344640304,-890.80323467,0.00012573,2]
[401717134,1768344640314,-40362.19022082,0.00012573,2]
[401717804,1768344647438,834.67,0.00012573,2]
[401717809,1768344647476,-460896.07465486,0.00012573,2]
[401717811,1768344647487,-378521.91904769,0.00012573,2]
[401717813,1768344647497,-415.21403486,0.0001261,2]
[401717815,1768344647506,-173.4681367,0.00012648,2]
[401717817,1768344647516,-500.0,0.00012674,2]
[401717819,1768344647526,-401.4282912,0.00012674,2]
[401717821,1768344647535,-500.0,0.00012674,2]
[401717823,1768344647545,-500.0,0.00012674,2]
[401717825,1768344647555,-500.0,0.00012674,2]
[401717827,1768344647564,-500.0,0.00012674,2]
[401717829,1768344647573,-500.0,0.00012674,2]
[401717831,1768344647582,-50000.0,0.00012675,2]
[401717833,1768344647592,-173.4681367,0.00012722,2]
[401717835,1768344647601,-173.4681367,0.00012797,2]
[401717836,1768344647611,-151.0,0.000128,2]
[401717838,1768344647620,-196.60204515,0.00012829,2]
[401717840,1768344647631,-173.4681367,0.00012871,2]
[401717842,1768344647642,-267.39051864,0.00012876,2]
[401717844,1768344647652,-1068.49251249,0.00012876,2]
[401717846,1768344647661,-539.24255818,0.00012876,2]
[401717848,1768344647672,-286.5784154,0.00012876,2]
[401717850,1768344647684,-9876.70539664,0.000129,2]
[401717852,1768344647694,-46778.60977269,0.00012971,2]
[401717854,1768344647704,-151.0,0.00012971,2]
[401717856,1768344647714,-287.121433,0.00012971,2]
[401717858,1768344647724,-500.0,0.00013,2]
[401717860,1768344647734,-478.75725327,0.00013121,2]
[401717862,1768344647743,-2312.83697232,0.00013121,2]
[401717864,1768344647755,-167.41762285,0.0001315,2]
[401717865,1768344647764,-500.0,0.0001315,2]
[401717867,1768344647774,-500.0,0.0001315,2]
[401717869,1768344647783,-500.0,0.0001315,2]
[401717871,1768344647792,-817.0,0.0001315,2]
[401717873,1768344647801,-500.0,0.0001315,2]
[401717875,1768344647810,-500.0,0.0001315,2]
[401717877,1768344647820,-500.0,0.0001315,2]
[401717879,1768344647829,-170.20314176,0.0001315,2]
[401717881,1768344647842,-500.0,0.0001315,2]
[401717883,1768344647851,-500.0,0.0001315,2]
[401717885,1768344647861,-500.0,0.0001315,2]
[401717886,1768344647870,-285.34302023,0.0001315,2]
[401717888,1768344647879,-500.0,0.0001315,2]
[401717890,1768344647889,-500.0,0.0001315,2]
[401717892,1768344647898,-151.90780903,0.0001315,2]
[401717893,1768344647910,-386.5787481,0.000132,2]
[401717894,1768344647919,-497.16825472,0.00013273,2]
[401717895,1768344647928,-282.09902954,0.00013273,2]
[401717896,1768344647937,-500.0,0.00013273,2]
[401717897,1768344647946,-500.0,0.00013273,2]
[401717898,1768344647955,-502.2053155,0.00013273,2]
[401717900,1768344647964,-500.0,0.00013273,2]
[401717902,1768344647973,-500.0,0.00013273,2]
[401717904,1768344647982,-500.0,0.00013273,2]
[401717905,1768344647991,-500.0,0.00013273,2]
[401717907,1768344648001,-500.0,0.00013273,2]
[401717909,1768344648010,-167.61597056,0.00013273,2]
[401717911,1768344648019,-500.24269708,0.00013273,2]
[401717913,1768344648028,-500.09394672,0.00013273,2]
[401717915,1768344648037,-500.0,0.00013273,2]
[401717917,1768344648047,-500.0,0.00013273,2]
[401717919,1768344648056,-500.0,0.00013273,2]
[401717921,1768344648065,-500.0,0.00013273,2]
[401717923,1768344648074,-500.0,0.00013273,2]
[401717925,1768344648084,-500.0,0.00013273,2]
[401717927,1768344648093,-500.0,0.00013273,2]
[401717929,1768344648103,-500.0,0.00013273,2]
[401717931,1768344648112,-500.0,0.00013273,2]
[401717932,1768344648124,-500.0,0.00013273,2]
[401717934,1768344648133,-500.0,0.00013273,2]
[401717937,1768344648146,-500.0,0.00013273,2]
[401717938,1768344648155,-500.0,0.00013273,2]
[401717940,1768344648165,-500.0,0.00013273,2]
[401717942,1768344648174,-500.0,0.00013273,2]
[401717944,1768344648184,-500.0,0.00013273,2]
[401717946,1768344648193,-500.0,0.00013273,2]
[401717947,1768344648203,-195.41,0.00013273,2]
[401717948,1768344648212,-500.90932308,0.00013273,2]
[401717949,1768344648222,-344.17046968,0.00013273,2]
[401717950,1768344648231,-500.0,0.00013273,2]
[401717951,1768344648241,-500.30400326,0.00013273,2]
[401717952,1768344648250,-500.13491524,0.00013273,2]
[401717953,1768344648260,-500.0,0.00013273,2]
[401717954,1768344648269,-500.10488694,0.00013273,2]
[401717955,1768344648279,-500.0,0.00013273,2]
[401717956,1768344648288,-544.08472099,0.00013273,2]
[401717957,1768344648298,-185.60453451,0.00013273,2]
[401717958,1768344648307,-500.0,0.00013273,2]
[401717959,1768344648316,-519.9936575,0.00013273,2]
[401717960,1768344648326,-500.14204238,0.00013273,2]
[401717961,1768344648335,-500.0,0.00013273,2]
[401717962,1768344648345,-500.0,0.00013273,2]
[401717963,1768344648354,-500.0,0.00013273,2]
[401717964,1768344648364,-500.0,0.00013273,2]
[401717965,1768344648373,-500.0,0.00013273,2]
[401717966,1768344648383,-504.27661041,0.00013273,2]
[401717967,1768344648394,-500.0,0.00013273,2]
[401717968,1768344648404,-288.28805216,0.00013273,2]
[401717969,1768344648413,-500.0,0.00013273,2]
[401717970,1768344648422,-177.36085556,0.00013287,2]
[401717971,1768344648431,-500.0,0.00013287,2]
[401717972,1768344648440,-500.0,0.00013287,2]
[401717973,1768344648449,-602.59944967,0.00013287,2]
[401717974,1768344648458,-817.0,0.00013287,2]
[401717975,1768344648468,-500.0,0.00013287,2]
[401717976,1768344648478,-500.0,0.00013287,2]
[401717977,1768344648487,-500.0,0.00013287,2]
[401717978,1768344648497,-500.0,0.00013287,2]
[401717979,1768344648506,-576.55594314,0.00013287,2]
[401717980,1768344648518,-153.96461209,0.00013287,2]
[401717981,1768344648529,-500.0,0.00013287,2]
[401717982,1768344648538,-500.0,0.00013287,2]
[401717983,1768344648548,-500.0,0.00013287,2]
[401717984,1768344648557,-412.94,0.00013324,2]
[401717985,1768344648566,-2484.87619961,0.00013327,2]
[401717986,1768344648575,-151.0,0.00013327,2]
[401717987,1768344648584,-151.0,0.000134,2]
[401717988,1768344648593,-200.0,0.00013424,2]
[401717989,1768344648603,-200.0,0.00013424,2]
[401717990,1768344648612,-254.82317424,0.00013424,2]
[401717991,1768344648622,-200.0,0.00013424,2]
[401717992,1768344648632,-500.0,0.00013424,2]
[401717993,1768344648643,-500.0,0.00013424,2]
[401717995,1768344648653,-500.0,0.00013424,2]
[401717996,1768344648662,-817.0,0.00013424,2]
[401717998,1768344648673,-160.56827625,0.00013424,2]
[401718000,1768344648686,-500.0,0.00013424,2]
[401718002,1768344648695,-500.0,0.00013424,2]
[401718004,1768344648704,-500.0,0.00013424,2]
[401718005,1768344648714,-161.30460818,0.00013424,2]
[401718007,1768344648723,-500.0,0.00013424,2]
[401718009,1768344648732,-1084.07817532,0.00013432,2]
[401718011,1768344648742,-3588.65178199,0.00013494,2]
[401718014,1768344648754,-465.27873332,0.00013499,2]
[401718016,1768344648763,-151.0,0.000135,2]
[401718017,1768344648772,-168.0,0.0001354,2]
[401718019,1768344648781,-500.0,0.00013547,2]
[401718021,1768344648791,-930.59140017,0.00013548,2]
[401718023,1768344648800,-181.421,0.00013559,2]
[401718025,1768344648809,-500.0,0.00013561,2]
[401718026,1768344648818,-500.0,0.00013561,2]
[401718028,1768344648828,-500.0,0.00013561,2]
[401718030,1768344648837,-817.0,0.00013561,2]
[401718032,1768344648847,-500.0,0.00013561,2]
[401718034,1768344648856,-500.0,0.00013561,2]
[401718035,1768344648865,-500.0,0.00013561,2]
[401718037,1768344648874,-190.86169873,0.00013561,2]
[401718039,1768344648884,-500.0,0.00013561,2]
[401718041,1768344648894,-392.24,0.000136,2]
[401718043,1768344648903,-2551.22780994,0.00013631,10]
[401718045,1768344648913,-319.0,0.00013637,2]
[401718047,1768344648922,-78885.932227,0.00013663,2]
[401718049,1768344648931,-496.47127164,0.00013669,2]
[401718050,1768344648940,-2398.4119403,0.00013669,2]
[401718052,1768344648950,-300.0,0.00013673,2]
[401718054,1768344648959,-319.0,0.00013683,2]
[401718056,1768344648968,-500.0,0.00013698,2]
[401718057,1768344648977,-250.0,0.00013698,2]
[401718059,1768344648986,-817.0,0.00013698,2]
[401718061,1768344648995,-500.0,0.00013698,2]
[401718063,1768344649004,-151.71242224,0.00013698,2]
[401718065,1768344649013,-500.0,0.00013698,2]
[401718067,1768344649022,-500.0,0.00013698,2]
[401718069,1768344649031,-500.0,0.00013698,2]
[401718071,1768344649040,-200.0,0.00013698,2]
[401718072,1768344649049,-500.0,0.00013698,2]
[401718074,1768344649059,-500.0,0.00013698,2]
[401718076,1768344649067,-605.301663,0.00013698,2]
[401718078,1768344649077,-500.0,0.00013698,2]
[401718080,1768344649085,-500.0,0.00013698,2]
[401718082,1768344649095,-447.26951081,0.00013698,2]
[401718083,1768344649104,-500.0,0.00013698,2]
[401718085,1768344649113,-500.0,0.00013698,2]
[401718087,1768344649122,-500.0,0.00013698,2]
[401718089,1768344649131,-500.0,0.00013698,2]
[401718091,1768344649142,-500.0,0.00013698,2]
[401718092,1768344649151,-500.0,0.00013698,2]
[401718094,1768344649161,-500.0,0.00013698,2]
[401718096,1768344649170,-500.0,0.00013698,2]
[401718098,1768344649181,-500.0,0.00013698,2]
[401718100,1768344649190,-500.0,0.00013698,2]
[401718102,1768344649201,-500.0,0.00013698,2]
[401718104,1768344649211,-500.0,0.00013698,2]
[401718106,1768344649220,-500.0,0.00013698,2]
[401718108,1768344649229,-500.0,0.00013698,2]
[401718109,1768344649239,-500.0,0.00013698,2]
[401718111,1768344649249,-500.0,0.00013698,2]
[401718113,1768344649258,-500.0,0.00013698,2]
[401718115,1768344649267,-500.0,0.00013698,2]
[401718117,1768344649276,-194.91479668,0.00013698,2]
[401718132,1768344649285,-1264.27,0.00013698,2]
[401718134,1768344649437,-1264.27,0.00013698,2]
[401718136,1768344649447,-1264.27,0.00013698,2]
[401718138,1768344649456,-1264.27,0.00013698,2]
[401718140,1768344649466,-1264.27,0.00013698,2]
[401718141,1768344649475,-1264.27,0.00013698,2]
[401718143,1768344649484,-1264.27,0.00013698,2]
[401718145,1768344649493,-1264.27,0.00013698,2]
[401718147,1768344649502,-1264.27,0.00013698,2]
[401718149,1768344649511,-1264.27,0.00013698,2]
[401718151,1768344649521,-1264.27,0.00013698,2]
[401718152,1768344649530,-1264.27,0.00013698,2]
[401718154,1768344649539,-1264.27,0.00013698,2]
[401718156,1768344649548,-1264.27,0.00013698,2]
[401718158,1768344649557,-1264.27,0.00013698,2]
[401718160,1768344649568,-1264.27,0.00013698,2]
[401718162,1768344649579,-1264.27,0.00013698,2]
[401718164,1768344649590,-1264.27,0.00013698,2]
[401718166,1768344649599,-1264.27,0.00013698,2]
[401718168,1768344649608,-1264.27,0.00013698,2]
[401718170,1768344649618,-1264.27,0.00013698,2]
[401718171,1768344649627,-1264.27,0.00013698,2]
[401718173,1768344649637,-1264.27,0.00013698,2]
[401718175,1768344649646,-1264.43773152,0.00013698,2]
[401718177,1768344649655,-500.0,0.00013698,2]
[401718179,1768344649664,-500.0,0.00013698,2]
[401718181,1768344649675,-500.0,0.00013698,2]
[401718183,1768344649687,-500.0,0.00013698,2]
[401718185,1768344649696,-500.0,0.00013698,2]
[401718186,1768344649706,-500.0,0.00013698,2]
[401718188,1768344649718,-500.0,0.00013698,2]
[401718190,1768344649727,-500.0,0.00013698,2]
[401718192,1768344649736,-224.1550686,0.00013698,2]
[401718194,1768344649745,-1000.0,0.00013698,2]
[401718196,1768344649754,-1000.0,0.00013698,2]
[401718198,1768344649763,-1000.0,0.00013698,2]
[401718199,1768344649773,-1000.0,0.00013698,2]
[401718201,1768344649784,-1000.0,0.00013698,2]
[401718203,1768344649793,-1000.0,0.00013698,2]
[401718205,1768344649802,-593.71236514,0.00013698,2]
[401718207,1768344649811,-500.0,0.00013698,2]
[401718208,1768344649819,-500.0,0.00013698,2]
[401718210,1768344649828,-500.0,0.00013698,2]
[401718212,1768344649837,-500.0,0.00013698,2]
[401718214,1768344649846,-500.0,0.00013698,2]
[401718216,1768344649855,-500.0,0.00013698,2]
[401718218,1768344649864,-500.0,0.00013698,2]
[401718219,1768344649873,-500.0,0.00013698,2]
[401718221,1768344649882,-500.0,0.00013698,2]
[401718223,1768344649892,-464.77099704,0.00013698,2]
[401718225,1768344649902,-500.0,0.00013698,2]
[401718227,1768344649911,-500.0,0.00013698,2]
[401718229,1768344649920,-500.0,0.00013698,2]
[401718230,1768344649928,-500.0,0.00013698,2]
[401718232,1768344649938,-544.99576824,0.00013698,2]
[401718234,1768344649947,-500.0,0.00013698,2]
[401718236,1768344649956,-500.0,0.00013698,2]
[401718238,1768344649965,-500.0,0.00013698,2]
[401718240,1768344649975,-500.0,0.00013698,2]
[401718242,1768344649983,-1334.708024,0.00013699,2]
[401718244,1768344649992,-1000.0,0.00013699,2]
[401718245,1768344650001,-500.0,0.00013699,2]
[401718247,1768344650011,-500.0,0.00013699,2]
[401718249,1768344650020,-500.0,0.00013699,2]
[401718251,1768344650029,-500.0,0.00013699,2]
[401718253,1768344650038,-500.00547124,0.00013699,2]
[401718255,1768344650048,-500.0,0.00013699,2]
[401718257,1768344650057,-500.0,0.00013699,2]
[401718258,1768344650066,-500.0,0.00013699,2]
[401718260,1768344650076,-500.0,0.00013699,2]
[401718262,1768344650085,-500.0,0.00013699,2]
[401718264,1768344650095,-500.0,0.00013699,2]
[401718266,1768344650104,-500.0,0.00013699,2]
[401718268,1768344650114,-500.0,0.00013699,2]
[401718270,1768344650123,-500.0,0.00013699,2]
[401718272,1768344650132,-500.0,0.00013699,2]
[401718273,1768344650141,-500.0,0.00013699,2]
[401718275,1768344650151,-252.75899042,0.00013699,2]
[401718277,1768344650160,-500.0,0.00013699,2]
[401718279,1768344650169,-500.0,0.00013699,2]
[401718281,1768344650179,-488.64589349,0.00013699,2]
[401718283,1768344650188,-500.0,0.00013699,2]
[401718285,1768344650197,-500.0,0.00013699,2]
[401718287,1768344650206,-500.0,0.00013699,2]
[401718288,1768344650217,-500.0,0.00013699,2]
[401718290,1768344650226,-500.0,0.00013699,2]
[401718292,1768344650235,-500.0,0.00013699,2]
[401718294,1768344650244,-504.32249359,0.00013699,2]
[401718296,1768344650253,-500.0,0.00013699,2]
[401718298,1768344650262,-500.0,0.00013699,2]
[401718300,1768344650271,-500.0,0.00013699,2]
[401718302,1768344650281,-192.77974704,0.00013699,2]
[401718303,1768344650290,-413.61388111,0.00013699,2]
[401718305,1768344650299,-500.0,0.00013699,2]
[401718307,1768344650308,-500.0,0.00013699,2]
[401718309,1768344650318,-551.09382566,0.00013699,2]
[401718311,1768344650327,-443.77041137,0.00013699,2]
[401718313,1768344650336,-500.0,0.00013699,2]
[401718315,1768344650346,-500.0,0.00013699,2]
[401718317,1768344650355,-500.0,0.00013699,2]
[401718318,1768344650363,-500.0,0.00013699,2]
[401718320,1768344650372,-500.0,0.00013699,2]
[401718322,1768344650382,-500.0,0.00013699,2]
[401718324,1768344650392,-500.0,0.00013699,2]
[401718326,1768344650401,-778.0,0.000137,2]
[401718328,1768344650410,-629.0,0.00013729,2]
[401718329,1768344650419,-1367.0,0.00013729,2]
[401718331,1768344650428,-2147.0,0.00013729,2]
[401718333,1768344650437,-799.97,0.00013735,2]
[401718335,1768344650447,-168.0,0.0001378,2]
[401718337,1768344650456,-989.85278462,0.000138,2]
[401718339,1768344650466,-168.0,0.00013806,2]
[401718341,1768344650475,-448.52259365,0.00013821,2]
[401718342,1768344650484,-500.0,0.00013821,2]
[401718344,1768344650493,-500.0,0.00013821,2]
[401718346,1768344650502,-500.0,0.00013821,2]
[401718348,1768344650511,-543.38158779,0.00013821,2]
[401718350,1768344650520,-500.0,0.00013821,2]
[401718352,1768344650530,-500.0,0.00013821,2]
[401718354,1768344650539,-500.0,0.00013821,2]
[401718356,1768344650548,-500.0,0.00013821,2]
[401718358,1768344650557,-168.36851892,0.00013821,2]
[401718359,1768344650566,-151.39515074,0.00013821,2]
[401718361,1768344650575,-1003.26850674,0.00013821,2]
[401718363,1768344650585,-500.0,0.00013821,2]
[401718365,1768344650594,-500.0,0.00013821,2]
[401718367,1768344650603,-488.99241758,0.00013821,2]
[401718369,1768344650612,-1000.0,0.00013821,2]
[401718371,1768344650621,-1000.0,0.00013821,2]
[401718373,1768344650630,-500.0,0.00013821,2]
[401718374,1768344650640,-500.0,0.00013821,2]
[401718376,1768344650649,-500.0,0.00013821,2]
[401718378,1768344650658,-1000.0,0.00013821,2]
[401718380,1768344650668,-905.11556861,0.00013821,2]
[401718382,1768344650679,-500.0,0.00013821,2]
[401718384,1768344650689,-250.0,0.00013835,2]
[401718386,1768344650699,-500.0,0.00013835,2]
[401718387,1768344650708,-817.0,0.00013835,2]
[401718389,1768344650718,-500.0,0.00013835,2]
[401718391,1768344650727,-622.17092249,0.00013835,2]
[401718393,1768344650736,-500.0,0.00013835,2]
[401718395,1768344650745,-500.0,0.00013835,2]
[401718397,1768344650756,-194.1476836,0.00013836,2]
[401718399,1768344650765,-194.1476836,0.00013836,2]
[401718400,1768344650774,-194.1476836,0.00013836,2]
[401718402,1768344650784,-376.834513,0.00013846,2]
[401718404,1768344650793,-319.0,0.00013852,2]
[401718406,1768344650803,-971.73061583,0.0001386,2]
[401718408,1768344650812,-300.0,0.00013869,2]
[401718410,1768344650822,-300.0,0.00013869,2]
[401718412,1768344650831,-300.0,0.00013869,2]
[401718414,1768344650840,-300.0,0.00013869,2]
[401718416,1768344650849,-300.0,0.00013869,2]
[401718418,1768344650858,-300.0,0.00013869,2]
[401718419,1768344650867,-300.0,0.00013869,2]
[401718421,1768344650877,-300.0,0.00013869,2]
[401718423,1768344650886,-300.0,0.00013869,2]
[401718425,1768344650895,-300.0,0.00013869,2]
[401718427,1768344650904,-300.0,0.00013869,2]
[401718429,1768344650912,-300.0,0.00013869,2]
[401718431,1768344650922,-300.0,0.00013869,2]
[401718433,1768344650931,-300.0,0.00013869,2]
[401718435,1768344650939,-300.0,0.00013869,2]
[401718436,1768344650948,-600.0,0.00013869,2]
[401718438,1768344650957,-168.0,0.00013937,2]
[401718440,1768344650967,-726.13525578,0.00013946,2]